fUSD/lending_fUSD_20240607
["ID","MTS","AMOUNT","RATE_DAILY","PERIOD"]
[328758974,1717770646085,-443.93183794,0.00029374,2]
[328758975,1717770646094,-353.4011781,0.00029384,15]
[328758976,1717770646104,-2104.20793965,0.00029384,15]
[328758977,1717770646113,-158.05,0.00029409,2]
[328758978,1717770646123,-443.93183794,0.00029409,2]
[328758979,1717770646132,-155.30527562,0.00029412,2]
[328758980,1717770646141,-251168.69279437,0.00029419,13]
[328758981,1717770646154,-38276.24508641,0.00029419,13]
[328759014,1717770647066,-175.616,0.00028683,2]
[328759016,1717770647076,-388.50765,0.00028772,2]
[328759018,1717770647086,-388.50765,0.00029119,2]
[328759020,1717770647096,-19294.65648879,0.00029419,13]
[328759032,1717770647406,-642.52569257,0.00029419,13]
[328759033,1717770647418,-2560.27,0.00029419,13]
[328759034,1717770647430,-7130.2,0.00029419,13]
[328759035,1717770844560,5843.39407327,0.000118,2]
[328759037,1717770996567,7060.53410219,0.00015,2]
[328759038,1717770996595,4663516.94653463,0.00015,2]
[328759039,1717771377686,3072.07,0.0003,40]
[328759040,1717771546112,-150.0,0.00030234,28]
[328759043,1717771745138,-253.25540536,0.00014993,2]
[328759044,1717771745164,-354.95194464,0.00014994,2]
[328759045,1717771760202,-511.7073518,0.00014994,2]
[328759046,1717771760225,-887.8352654,0.00014998,2]
[328759047,1717771760249,-23524.4743828,0.00015,2]
[328759048,1717771768170,-27503.1267,0.00015,2]
[328759064,1717771832235,-803.70360762,0.00014999,2]
[328759065,1717771832246,-1804.91688019,0.00014999,2]
[328759066,1717771832257,-1804.91688019,0.00014999,2]
[328759067,1717771832270,-1804.91688019,0.00014999,2]
[328759068,1717771832283,-1804.91688019,0.00014999,2]
[328759069,1717771832294,-96777.38113419,0.00015,2]
[328759070,1717771832308,-1574.3383352,0.00015,2]
[328759074,1717771832547,-7041.1,0.00015,2]
[328759075,1717771832563,-265.65120639,0.00015,2]
[328759076,1717771832577,-1192.8949193,0.00015,2]
[328759077,1717771832590,-142633.6219868,0.00015,2]
[328759078,1717771832601,-941.95995658,0.00019078,2]
[328759079,1717771832613,-500.0,0.00019178,2]
[328759080,1717771832624,-236.20903743,0.00019178,2]
[328759081,1717771832636,-455.56,0.00019773,2]
[328759082,1717771832646,-2709.29177565,0.0002,7]
[328759083,1717771832657,-411.28860023,0.00020099,2]
[328759084,1717771832667,-169874.66116159,0.000201,2]
[328759085,1717771832683,-500.0,0.000201,2]
[328759103,1717771838301,-349.35332803,0.000201,2]
[328759104,1717771838313,-10435.96645618,0.000201,2]
[328759105,1717771838324,-896.61842324,0.000201,2]
[328759106,1717771838336,-622.21983407,0.000201,2]
[328759107,1717771838347,-461.61248665,0.000201,2]
[328759108,1717771840140,-836.87762474,0.000201,2]
[328759110,1717771840154,-255.9999999,0.000201,2]
[328759111,1717771840166,-2608.70054198,0.000201,2]
[328759112,1717771840179,-3426.83173226,0.000201,2]
[328759113,1717771840192,-20091.04647575,0.000201,2]
[328759114,1717771840206,-755.41426158,0.000201,2]
[328759115,1717771840221,-491.9965155,0.000201,2]
[328759116,1717771840233,-2689.0618997,0.000201,2]
[328759117,1717771840245,-703.20536157,0.000201,2]
[328759118,1717771840257,-13042.15733404,0.000201,2]
[328759119,1717771840453,-1466.88746637,0.000201,2]
[328759120,1717771841162,-280.3060292,0.00020099,2]
[328759121,1717771841175,-403.3769708,0.000201,2]
[328759122,1717771841187,-55243.84961727,0.000201,2]
[328759123,1717771841199,-11549.88051791,0.000201,2]
[328759124,1717771841213,-226.6238354,0.000201,2]
[328759125,1717771841223,-327.60783478,0.00020524,2]
[328759126,1717771841232,-941.95995657,0.00020624,2]
[328759127,1717771841242,-250.0,0.00020644,2]
[328759128,1717771841251,-364.49,0.00020997,2]
[328759129,1717771841262,-1630.73,0.00021365,2]
[328759130,1717771841272,-158.05,0.00021412,2]
[328759131,1717771841282,-423.40728126,0.0002167,2]
[328759132,1717771842178,-376.59271874,0.0002167,2]
[328759133,1717771842188,-8566.0,0.00021891,2]
[328759134,1717771842198,-250.0,0.00021891,2]
[328759135,1717771842211,-159.25,0.00021918,2]
[328759136,1717771842221,-455.56,0.00022037,2]
[328759137,1717771842230,-941.95995657,0.0002217,2]
[328759138,1717771842240,-3649.0,0.000229,3]
[328759139,1717771842250,-2968.36286544,0.000236,2]
[328759140,1717771842260,-941.95995657,0.00023716,2]
[328759141,1717771842270,-173.51,0.0002375,2]
[328759142,1717771842280,-1630.73,0.00024105,2]
[328759143,1717771842289,-180.0,0.0002423,2]
[328759144,1717771842300,-455.56,0.00024301,2]
[328759145,1717771842309,-163.1,0.00024367,2]
[328759146,1717771842319,-800.0,0.00024379,2]
[328759147,1717771842329,-173.34008465,0.000245,2]
[328759148,1717771842338,-1894.17251318,0.00024798,2]
[328759149,1717771842347,-1894.17251312,0.00024798,2]
[328759150,1717771842357,-1894.17251312,0.00024798,2]
[328759151,1717771842367,-1894.17251312,0.00024798,2]
[328759152,1717771842376,-1894.17251312,0.00024798,2]
[328759153,1717771842385,-404.48248922,0.00024799,2]
[328759154,1717771842395,-404.48248921,0.00024799,2]
[328759155,1717771842405,-404.48248921,0.00024799,2]
[328759156,1717771842414,-404.48248921,0.00024799,2]
[328759157,1717771842424,-404.48248921,0.00024799,2]
[328759158,1717771842434,-186.81772801,0.0002499,2]
[328759159,1717771842443,-13791.90227214,0.00025,7]
[328759160,1717771842452,-404.48248921,0.00025046,2]
[328759161,1717771842463,-1894.17251312,0.00025046,2]
[328759162,1717771842472,-167.9,0.00025237,2]
[328759163,1717771842481,-941.95995657,0.00025262,2]
[328759164,1717771842491,-404.48248921,0.00026259,2]
[328759165,1717771842501,-1894.17251312,0.00026259,2]
[328759166,1717771842511,-455.56,0.00026565,2]
[328759167,1717771842520,-941.95995657,0.00026808,2]
[328759168,1717771842531,-1630.73,0.00026845,2]
[328759169,1717771842540,-800.0,0.00027087,2]
[328759170,1717771842550,-161.24,0.000274,2]
[328759171,1717771842559,-404.48248921,0.00027473,2]
[328759172,1717771842569,-1894.17251312,0.00027473,2]
[328759173,1717771842579,-1053.770871,0.00027732,2]
[328759174,1717771842589,-179.831585,0.00027732,2]
[328759175,1717771842599,-938.294352,0.00027732,2]
[328759176,1717771842609,-357.976337,0.00027732,2]
[328759177,1717771842629,-357.976336,0.00027732,2]
[328759178,1717771842640,-186.101951,0.00027732,2]
[328759179,1717771842651,-469.147176,0.00027732,2]
[328759180,1717771842660,-526.885436,0.00027732,2]
[328759181,1717771842670,-2505.73,0.00028057,2]
[328759182,1717771842681,-1053.770871,0.00028079,2]
[328759183,1717771842691,-938.294352,0.00028079,2]
[328759184,1717771842701,-357.976337,0.00028079,2]
[328759185,1717771842712,-357.976336,0.00028079,2]
[328759186,1717771842722,-469.147176,0.00028079,2]
[328759187,1717771842733,-526.885436,0.00028079,2]
[328759188,1717771842743,-577.77286429,0.00028346,2]
[328759189,1717771842753,-200.0,0.00028347,2]
[328759190,1717771842763,-941.95995657,0.00028354,2]
[328759191,1717771842773,-1051.66,0.00028356,2]
[328759192,1717771842784,-1053.770871,0.00028426,2]
[328759193,1717771842793,-938.294352,0.00028426,2]
[328759194,1717771842803,-357.976337,0.00028426,2]
[328759195,1717771842813,-357.976336,0.00028426,2]
[328759196,1717771842823,-469.147176,0.00028426,2]
[328759198,1717771842833,-526.885436,0.00028426,2]
[328759199,1717771842843,-304.0,0.00028668,8]
[328759200,1717771842853,-404.48248921,0.00028686,2]
[328759201,1717771842863,-1894.17251312,0.00028686,2]
[328759202,1717771842873,-1053.770871,0.00028772,2]
[328759203,1717771842883,-938.294352,0.00028772,2]
[328759204,1717771842894,-357.976337,0.00028772,2]
[328759205,1717771842904,-357.976336,0.00028772,2]
[328759206,1717771842914,-469.147176,0.00028772,2]
[328759207,1717771842924,-526.885436,0.00028772,2]
[328759208,1717771842933,-455.56,0.00028829,2]
[328759209,1717771842943,-2505.73,0.00028992,2]
[328759210,1717771842954,-310.89797875,0.00029,2]
[328759211,1717771842965,-344.0471744,0.00029,2]
[328759212,1717771842975,-344.0471744,0.00029,2]
[328759213,1717771842985,-344.0471744,0.00029,2]
[328759214,1717771842995,-344.0471744,0.00029,2]
[328759215,1717771843005,-344.0471744,0.00029,2]
[328759216,1717771843016,-344.0471744,0.00029,2]
[328759217,1717771843027,-344.0471744,0.00029,2]
[328759218,1717771843038,-344.0471744,0.00029,2]
[328759219,1717771843048,-344.0471744,0.00029,2]
[328759220,1717771843058,-344.0471744,0.00029,2]
[328759221,1717771843068,-344.0471744,0.00029,2]
[328759222,1717771843078,-344.0471744,0.00029,2]
[328759223,1717771843088,-344.0471744,0.00029,2]
[328759224,1717771843098,-344.0471744,0.00029,2]
[328759225,1717771843107,-344.0471744,0.00029,2]
[328759226,1717771843118,-344.0471744,0.00029,2]
[328759227,1717771843132,-344.0471744,0.00029,2]
[328759228,1717771843142,-344.0471744,0.00029,2]
[328759229,1717771843152,-344.0471744,0.00029,2]
[328759230,1717771843162,-344.0471744,0.00029,2]
[328759232,1717771843173,-344.0471744,0.00029,2]
[328759233,1717771843183,-344.0471744,0.00029,2]
[328759234,1717771843193,-344.0471744,0.00029,2]
[328759236,1717771843204,-344.0471744,0.00029,2]
[328759237,1717771843216,-344.0471744,0.00029,2]
[328759239,1717771843225,-344.0471744,0.00029,2]
[328759241,1717771843235,-344.0471744,0.00029,2]
[328759242,1717771843245,-344.0471744,0.00029,2]
[328759243,1717771843255,-344.0471744,0.00029,2]
[328759244,1717771843266,-344.0471744,0.00029,2]
[328759245,1717771843276,-344.0471744,0.00029,2]
[328759246,1717771843288,-344.0471744,0.00029,2]
[328759247,1717771843298,-344.0471744,0.00029,2]
[328759248,1717771843307,-344.0471744,0.00029,2]
[328759249,1717771843317,-344.0471744,0.00029,2]
[328759250,1717771843327,-344.0471744,0.00029,2]
[328759251,1717771843336,-344.0471744,0.00029,2]
[328759252,1717771843348,-344.0471744,0.00029,2]
[328759253,1717771843357,-344.0471744,0.00029,2]
[328759254,1717771843368,-344.0471744,0.00029,2]
[328759255,1717771843378,-151.25620831,0.00029025,2]
[328759256,1717771843390,-417.15,0.00029041,2]
[328759257,1717771843400,-873.01,0.00029041,2]
[328759258,1717771843411,-417.15,0.00029041,2]
[328759259,1717771843421,-873.01,0.00029041,2]
[328759260,1717771843431,-417.15,0.00029041,2]
[328759261,1717771843442,-873.01,0.00029041,2]
[328759262,1717771843452,-873.01,0.00029041,2]
[328759263,1717771843463,-417.15,0.00029041,2]
[328759264,1717771843473,-873.01,0.00029041,2]
[328759265,1717771843482,-417.15,0.00029041,2]
[328759266,1717771843492,-831.71,0.00029041,2]
[328759267,1717771843502,-1743.36,0.00029041,2]
[328759268,1717771843512,-869.43,0.00029041,2]
[328759269,1717771843522,-412.75360643,0.0002911,2]
[328759270,1717771843533,-1053.770871,0.00029119,2]
[328759271,1717771843542,-938.294352,0.00029119,2]
[328759272,1717771843552,-357.976337,0.00029119,2]
[328759273,1717771843562,-357.976336,0.00029119,2]
[328759274,1717771843573,-469.147176,0.00029119,2]
[328759275,1717771843584,-526.885436,0.00029119,2]
[328759276,1717771843593,-2714.40052,0.0002912,2]
[328759277,1717771843603,-150.0,0.00029178,2]
[328759278,1717771843612,-422.39,0.00029178,2]
[328759279,1717771843622,-150.0,0.00029178,2]
[328759280,1717771843632,-164.1,0.00029178,2]
[328759281,1717771843641,-150.0,0.00029178,2]
[328759282,1717771843652,-150.0,0.00029178,2]
[328759283,1717771843661,-150.0,0.00029178,2]
[328759284,1717771843672,-353.2,0.00029178,2]
[328759285,1717771843683,-150.63,0.00029178,2]
[328759286,1717771843692,-150.0,0.00029178,2]
[328759287,1717771843706,-526.07,0.00029178,2]
[328759288,1717771843715,-150.0,0.00029178,2]
[328759289,1717771843725,-353.2,0.00029178,2]
[328759290,1717771843735,-150.0,0.00029178,2]
[328759291,1717771843745,-422.39,0.00029178,2]
[328759292,1717771843756,-150.0,0.00029178,2]
[328759293,1717771843766,-164.1,0.00029178,2]
[328759294,1717771843776,-150.0,0.00029178,2]
[328759295,1717771843786,-526.07,0.00029178,2]
[328759296,1717771843796,-150.0,0.00029178,2]
[328759297,1717771843806,-164.1,0.00029178,2]
[328759298,1717771843816,-526.07,0.00029178,2]
[328759299,1717771843826,-422.39,0.00029178,2]
[328759300,1717771843836,-150.0,0.00029178,2]
[328759301,1717771843846,-150.0,0.00029178,2]
[328759302,1717771843857,-150.0,0.00029178,2]
[328759303,1717771843867,-150.0,0.00029178,2]
[328759304,1717771843877,-150.0,0.00029178,2]
[328759305,1717771843887,-353.2,0.00029178,2]
[328759306,1717771843897,-150.0,0.00029178,2]
[328759307,1717771843907,-150.0,0.00029178,2]
[328759308,1717771843917,-150.0,0.00029178,2]
[328759309,1717771843927,-353.2,0.00029178,2]
[328759310,1717771843938,-164.1,0.00029178,2]
[328759311,1717771843948,-526.07,0.00029178,2]
[328759312,1717771843959,-150.0,0.00029178,2]
[328759313,1717771843969,-150.0,0.00029178,2]
[328759314,1717771843979,-422.39,0.00029178,2]
[328759315,1717771843988,-150.0,0.00029178,2]
[328759316,1717771843998,-150.0,0.00029178,2]
[328759317,1717771844009,-353.2,0.00029178,2]
[328759318,1717771844019,-526.07,0.00029178,2]
[328759319,1717771844029,-150.0,0.00029178,2]
[328759320,1717771844039,-422.39,0.00029178,2]
[328759321,1717771844050,-150.0,0.00029178,2]
[328759322,1717771844060,-150.0,0.00029178,2]
[328759323,1717771844071,-164.1,0.00029178,2]
[328759324,1717771844081,-274.51725021,0.00029274,2]
[328759325,1717771844091,-247.21263589,0.0002935,2]
[328759326,1717771844102,-160.5577996,0.00029359,2]
[328759327,1717771844112,-152.21,0.00029364,2]
[328759328,1717771844123,-28576.92008103,0.00029373,2]
[328759329,1717771844162,-2895.94753421,0.00029373,2]
[328759330,1717771844175,-2092.61865524,0.00029373,2]
[328759331,1717771844226,-771.81407713,0.00029373,2]
[328759332,1717771844239,-385.66261705,0.00029373,2]
[328759333,1717771844251,-39679.03387646,0.00029373,2]
[328759334,1717771844262,-2868.43341692,0.00029373,2]
[328759335,1717771844275,-1599.37077202,0.00029373,2]
[328759336,1717771844286,-375.745,0.00029373,2]
[328759337,1717771844298,-6093.05724564,0.00029373,2]
[328759338,1717771844310,-301.21,0.00029373,2]
[328759339,1717771844383,-29567.16980735,0.00029373,2]
[328759340,1717771844393,-358.0,0.00029374,2]
[328759341,1717771844403,-875.827,0.00029374,2]
[328759342,1717771844412,-441.0,0.00029374,2]
[328759343,1717771844422,-1649.0,0.00029374,2]
[328759344,1717771844432,-620.954,0.00029374,2]
[328759345,1717771844442,-1267.0,0.00029374,2]
[328759346,1717771844452,-1830.0,0.00029374,2]
[328759347,1717771844463,-817.746,0.00029374,2]
[328759348,1717771844474,-446.0,0.00029374,2]
[328759349,1717771844484,-166.324,0.00029374,2]
[328759350,1717771844494,-152.188,0.00029374,2]
[328759351,1717771844505,-2420.215,0.00029374,2]
[328759352,1717771844514,-3173.0,0.00029374,2]
[328759353,1717771844524,-1304.0,0.00029374,2]
[328759354,1717771844534,-659.132,0.00029374,2]
[328759355,1717771844544,-5152.0,0.00029374,2]
[328759356,1717771844554,-1471.0,0.00029374,2]
[328759357,1717771844563,-38034.0,0.00029374,2]
[328759358,1717771844572,-3738.377,0.00029374,2]
[328759359,1717771844582,-1064.0,0.00029374,2]
[328759360,1717771844591,-150.0,0.00029374,2]
[328759361,1717771844600,-150.0,0.00029374,2]
[328759362,1717771844609,-364.49,0.00029396,2]
[328759363,1717771844618,-155.0,0.00029398,2]
[328759364,1717771844628,-929.09920929,0.00029398,2]
[328759365,1717771844637,-182.81116676,0.00029406,2]
[328759366,1717771844647,-151.0,0.00029409,2]
[328759367,1717771844657,-250.49088,0.00029409,2]
[328759368,1717771844666,-446.44016402,0.00029419,2]
[328759369,1717771844677,-2000.0,0.00029419,2]
[328759370,1717771844686,-200.0,0.00029419,2]
[328759371,1717771844696,-247.21263589,0.00029431,2]
[328759372,1717771844706,-182.81116676,0.00029439,2]
[328759373,1717771844715,-247.21263589,0.00029458,2]
[328759374,1717771844725,-155.42705087,0.00029495,2]
[328759375,1717771844735,-160.46479351,0.0002951,2]
[328759376,1717771844745,-155.18559125,0.00029532,2]
[328759377,1717771844756,-500.0,0.00029589,4]
[328759378,1717771844766,-500.0,0.00029589,4]
[328759379,1717771844776,-500.0,0.00029589,4]
[328759380,1717771844786,-153.63125507,0.00029596,2]
[328759381,1717771844795,-156.33097043,0.00029597,2]
[328759382,1717771844805,-153.63125507,0.00029639,2]
[328759383,1717771844815,-247.21263589,0.00029644,2]
[328759384,1717771844825,-500.0,0.00029653,2]
[328759385,1717771844835,-247.21263589,0.00029661,2]
[328759386,1717771844845,-252.87518969,0.00029698,2]
[328759387,1717771844855,-2000.0,0.00029713,2]
[328759388,1717771845084,-200.0,0.00029713,2]
[328759389,1717771845096,-156.33097043,0.00029729,2]
[328759390,1717771845106,-500.0,0.0002976,2]
[328759391,1717771845116,-200.0,0.0002976,2]
[328759392,1717771845127,-173.88445557,0.00029763,2]
[328759393,1717771845141,-154.31753182,0.00029791,2]
[328759394,1717771845151,-156.33097043,0.00029795,2]
[328759395,1717771845162,-182.81116676,0.00029796,2]
[328759396,1717771845171,-800.0,0.00029796,2]
[328759397,1717771845182,-207.84204185,0.00029799,2]
[328759398,1717771845192,-500.0,0.000298,2]
[328759399,1717771845202,-500.0,0.000298,2]
[328759400,1717771845214,-500.0,0.000298,2]
[328759401,1717771845224,-500.0,0.000298,2]
[328759402,1717771845234,-500.0,0.000298,2]
[328759403,1717771845244,-500.0,0.000298,2]
[328759404,1717771845253,-500.0,0.000298,2]
[328759405,1717771845263,-500.0,0.000298,2]
[328759406,1717771845272,-500.0,0.000298,2]
[328759407,1717771845282,-500.0,0.000298,2]
[328759408,1717771845292,-500.0,0.000298,2]
[328759409,1717771845301,-500.0,0.000298,2]
[328759410,1717771845311,-500.0,0.000298,2]
[328759411,1717771845321,-500.0,0.000298,2]
[328759412,1717771845330,-520.41,0.000298,2]
[328759413,1717771845340,-325.28,0.000298,2]
[328759414,1717771845350,-150.0,0.000298,2]
[328759415,1717771845359,-162.26244523,0.00029803,2]
[328759416,1717771845370,-156.83265137,0.00029811,2]
[328759417,1717771845380,-156.33097043,0.00029844,2]
[328759418,1717771845389,-154.31753182,0.00029846,2]
[328759419,1717771845399,-500.0,0.00029862,4]
[328759420,1717771845409,-555.00264691,0.00029863,4]
[328759421,1717771845418,-500.0,0.00029863,4]
[328759422,1717771845428,-539.34243101,0.00029863,4]
[328759423,1717771845437,-500.0,0.00029863,4]
[328759424,1717771845447,-500.0,0.00029863,4]
[328759425,1717771845456,-500.0,0.00029863,4]
[328759426,1717771845466,-500.0,0.00029863,4]
[328759427,1717771845476,-500.0,0.00029863,4]
[328759428,1717771845486,-500.0,0.00029863,4]
[328759429,1717771845496,-500.0,0.00029863,4]
[328759430,1717771845505,-500.0,0.00029863,4]
[328759431,1717771845515,-500.0,0.00029863,4]
[328759432,1717771845524,-500.0,0.00029863,4]
[328759433,1717771845533,-500.0,0.00029863,4]
[328759434,1717771845543,-500.0,0.00029863,4]
[328759435,1717771845553,-500.0,0.00029863,4]
[328759436,1717771845563,-500.0,0.00029863,4]
[328759437,1717771845573,-500.0,0.00029863,4]
[328759438,1717771845583,-500.0,0.00029863,4]
[328759439,1717771845592,-500.0,0.00029863,4]
[328759440,1717771845602,-500.0,0.00029863,4]
[328759441,1717771845612,-500.0,0.00029863,4]
[328759442,1717771845623,-500.0,0.00029863,4]
[328759443,1717771845633,-500.0,0.00029863,4]
[328759444,1717771845643,-500.0,0.00029863,4]
[328759445,1717771845653,-500.0,0.00029863,4]
[328759446,1717771845663,-500.0,0.00029863,4]
[328759447,1717771845672,-500.0,0.00029863,4]
[328759448,1717771845682,-500.0,0.00029863,4]
[328759449,1717771845692,-500.0,0.00029863,4]
[328759450,1717771845702,-500.0,0.00029863,4]
[328759451,1717771845713,-500.0,0.00029863,4]
[328759452,1717771845722,-500.0,0.00029863,4]
[328759453,1717771845733,-500.0,0.00029863,4]
[328759454,1717771845743,-500.0,0.00029863,4]
[328759455,1717771845754,-500.0,0.00029863,4]
[328759456,1717771845763,-500.0,0.00029863,4]
[328759457,1717771845774,-500.0,0.00029863,4]
[328759458,1717771845785,-500.0,0.00029863,4]
[328759459,1717771845794,-500.0,0.00029863,4]
[328759460,1717771845804,-500.0,0.00029863,4]
[328759461,1717771845814,-500.0,0.00029863,4]
[328759462,1717771845824,-500.0,0.00029863,4]
[328759463,1717771845834,-500.0,0.00029863,4]
[328759464,1717771845844,-500.0,0.00029863,4]
[328759465,1717771845854,-500.0,0.00029863,4]
[328759466,1717771845864,-500.0,0.00029863,4]
[328759467,1717771845874,-500.0,0.00029863,4]
[328759468,1717771845884,-500.0,0.00029863,4]
[328759469,1717771845895,-499.7997,0.00029863,4]
[328759470,1717771845905,-500.0,0.00029863,4]
[328759471,1717771845916,-500.0,0.00029863,4]
[328759472,1717771845926,-500.0,0.00029863,4]
[328759473,1717771845936,-500.0,0.00029863,4]
[328759474,1717771845946,-500.0,0.00029863,4]
[328759475,1717771845956,-500.0,0.00029863,4]
[328759476,1717771845967,-500.0,0.00029863,4]
[328759477,1717771845978,-538.0,0.00029863,4]
[328759479,1717771845988,-500.0,0.00029863,4]
[328759481,1717771845998,-500.0,0.00029863,4]
[328759483,1717771846007,-528.0,0.00029863,4]
[328759485,1717771846018,-500.0,0.00029863,4]
[328759487,1717771846028,-500.0,0.00029863,4]
[328759489,1717771846038,-500.0,0.00029863,4]
[328759490,1717771846047,-500.0,0.00029863,4]
[328759492,1717771846058,-500.0,0.00029863,4]
[328759494,1717771846067,-500.0,0.00029863,4]
[328759496,1717771846077,-500.0,0.00029863,4]
[328759498,1717771846087,-500.0,0.00029863,4]
[328759500,1717771846097,-500.0,0.00029863,4]
[328759502,1717771846106,-500.0,0.00029863,4]
[328759504,1717771846116,-500.0,0.00029863,4]
[328759506,1717771846126,-500.0,0.00029863,4]
[328759508,1717771846140,-500.0,0.00029863,4]
[328759510,1717771846150,-150.0,0.00029863,4]
[328759512,1717771846159,-150.0,0.00029863,4]
[328759514,1717771846169,-500.0,0.00029863,4]
[328759516,1717771846180,-278.71912147,0.00029863,4]
[328759517,1717771846190,-500.0,0.00029863,4]
[328759518,1717771846200,-500.0,0.00029863,4]
[328759519,1717771846212,-500.0,0.00029863,4]
[328759520,1717771846221,-500.0,0.00029863,4]
[328759521,1717771846230,-500.0,0.00029863,4]
[328759522,1717771846239,-500.0,0.00029863,4]
[328759523,1717771846248,-609.12161838,0.00029863,4]
[328759524,1717771846259,-500.0,0.00029863,4]
[328759525,1717771846269,-547.05424841,0.00029863,4]
[328759526,1717771846278,-502.72,0.00029863,4]
[328759527,1717771846287,-500.0,0.00029863,4]
[328759528,1717771846297,-500.0,0.00029863,4]
[328759529,1717771846307,-500.0,0.00029863,4]
[328759530,1717771846317,-500.0,0.00029863,4]
[328759531,1717771846326,-500.0,0.00029863,4]
[328759532,1717771846335,-500.0,0.00029863,4]
[328759533,1717771846345,-500.0,0.00029863,4]
[328759534,1717771846354,-4186.89,0.00029863,4]
[328759535,1717771846364,-4186.89,0.00029863,4]
[328759536,1717771846374,-4186.89,0.00029863,4]
[328759537,1717771846383,-500.0,0.00029863,4]
[328759538,1717771846392,-500.0,0.00029863,4]
[328759539,1717771846402,-500.0,0.00029863,4]
[328759540,1717771846412,-500.0,0.00029863,4]
[328759541,1717771846421,-517.22287988,0.00029863,4]
[328759542,1717771846430,-500.0,0.00029863,4]
[328759543,1717771846439,-500.0,0.00029863,4]
[328759544,1717771846449,-500.0,0.00029863,4]
[328759545,1717771846461,-500.0,0.00029863,4]
[328759546,1717771846470,-500.0,0.00029863,4]
[328759547,1717771846480,-520.02193329,0.00029863,4]
[328759548,1717771846489,-500.0,0.00029863,4]
[328759549,1717771846499,-500.0,0.00029863,4]
[328759550,1717771846509,-272.0090616,0.00029863,4]
[328759551,1717771846518,-524.27723727,0.00029863,4]
[328759552,1717771846528,-509.88930687,0.00029863,4]
[328759553,1717771846538,-524.69833777,0.00029863,4]
[328759554,1717771846547,-604.99526723,0.00029863,4]
[328759555,1717771846557,-516.00111849,0.00029863,4]
[328759556,1717771846567,-500.0,0.00029863,4]
[328759557,1717771846576,-500.0,0.00029863,4]
[328759558,1717771846586,-500.0,0.00029863,4]
[328759559,1717771846596,-500.0,0.00029863,4]
[328759560,1717771846606,-500.0,0.00029863,4]
[328759561,1717771846615,-500.0,0.00029863,4]
[328759562,1717771846624,-500.0,0.00029863,4]
[328759563,1717771846634,-500.0,0.00029863,4]
[328759564,1717771846644,-528.43376245,0.00029863,4]
[328759565,1717771846653,-500.0,0.00029863,4]
[328759566,1717771846663,-500.0,0.00029863,4]
[328759567,1717771846674,-512.44656616,0.00029863,4]
[328759568,1717771846684,-500.0,0.00029863,4]
[328759569,1717771846694,-518.31691849,0.00029863,4]
[328759570,1717771846703,-500.0,0.00029863,4]
[328759571,1717771846715,-500.0,0.00029863,4]
[328759572,1717771846724,-500.0,0.00029863,4]
[328759573,1717771846734,-516.64492863,0.00029863,4]
[328759574,1717771846743,-500.0,0.00029863,4]
[328759575,1717771846754,-548.7789777,0.00029863,4]
[328759576,1717771846763,-500.0,0.00029863,4]
[328759577,1717771846773,-500.0,0.00029863,4]
[328759578,1717771846783,-500.0,0.00029863,4]
[328759579,1717771846792,-500.0,0.00029863,4]
[328759580,1717771846802,-500.0,0.00029863,4]
[328759581,1717771846811,-500.0,0.00029863,4]
[328759582,1717771846821,-500.0,0.00029863,4]